bitfinex/quotes_BTCUSD_20220212
["timestamp","ask_amount","ask_price","bid_price","bid_amount"]
[1644687072582,0.00045828,42681.0,42677.0,0.25174002]
[1644687073382,0.29131782,42687.0,42677.0,0.25174002]
[1644687073582,0.3563327,42687.0,42677.0,0.25174002]
[1644687073783,0.00045834,42681.0,42677.0,0.25174002]
[1644687074627,0.2563327,42687.0,42677.0,0.25174002]
[1644687074827,0.00045834,42681.0,42677.0,0.25174002]
[1644687075929,0.2563327,42687.0,42677.0,0.25174002]
[1644687076128,0.00045834,42681.0,42677.0,0.25174002]
[1644687076530,0.00045834,42681.0,42678.0,0.058581]
[1644687076930,0.3563327,42687.0,42678.0,0.058581]
[1644687077331,0.00045833,42682.0,42678.0,0.058581]
[1644687078129,0.3563327,42687.0,42678.0,0.058581]
[1644687078386,0.16501488,42687.0,42678.0,0.058581]
[1644687078583,0.00045832,42682.0,42678.0,0.058581]
[1644687079386,0.35353025,42688.0,42681.0,0.20352535]
[1644687079387,0.25353025,42688.0,42681.0,0.20352535]
[1644687079588,0.00016689,42682.0,42681.0,0.25032535]
[1644687079785,0.00016689,42682.0,42681.0,0.36746935]
[1644687080187,0.00016689,42682.0,42681.0,0.163944]
[1644687080586,0.3,42688.0,42681.0,0.163944]
[1644687080988,0.00045832,42684.0,42681.0,0.163944]
[1644687081187,0.00045832,42684.0,42681.0,0.0468]
[1644687081487,0.19989928,42685.0,42681.0,0.0468]
[1644687081893,0.2552541,42684.0,42681.0,0.0468]
[1644687082132,0.25146824,42684.0,42680.0,0.02354401]
[1644687082330,0.25146824,42684.0,42681.0,0.0468]
[1644687082531,0.19989928,42685.0,42681.0,0.0468]
[1644687082733,0.25918435,42684.0,42676.0,0.163965]
[1644687082932,0.25918435,42684.0,42676.0,0.117165]
[1644687083731,0.24861519,42678.0,42676.0,0.117165]
[1644687084536,0.00052996,42686.0,42677.0,0.61199279]
[1644687084731,0.00052996,42686.0,42678.0,0.29817461]
[1644687085431,0.1263,42689.0,42677.0,0.61199279]
[1644687085632,0.00052998,42686.0,42678.0,0.29817461]
[1644687085894,0.00052998,42686.0,42679.0,0.058574]
[1644687086686,0.1263,42689.0,42679.0,0.058574]
[1644687087887,0.1263,42689.0,42679.0,0.105374]
[1644687088087,0.1263,42689.0,42682.0,0.2639114]
[1644687088287,0.01,42689.0,42682.0,0.2639114]
[1644687088687,0.01,42689.0,42683.0,0.058578]
[1644687089389,0.00052954,42688.0,42683.0,0.058578]
[1644687089648,0.00052954,42688.0,42684.0,0.0468]
[1644687089944,0.00052954,42688.0,42684.0,0.29961855]
[1644687090143,0.01,42689.0,42684.0,0.29961855]
[1644687090543,0.00052954,42688.0,42684.0,0.29961855]
[1644687091344,0.01,42689.0,42684.0,0.29961855]
[1644687091745,0.00052954,42688.0,42685.0,0.117128]
[1644687091946,0.00052954,42688.0,42686.0,0.39224088]
[1644687092149,0.00052954,42688.0,42687.0,0.30724043]
[1644687092346,0.00052954,42688.0,42687.0,0.35404043]
[1644687092547,0.01,42689.0,42687.0,0.35404043]
[1644687092748,0.01,42689.0,42688.0,0.3680743]
[1644687092947,0.01,42689.0,42688.0,0.4148743]
[1644687095188,0.005,42689.0,42688.0,0.4148743]
[1644687098336,0.005,42689.0,42688.0,0.105362]
[1644687099537,0.005,42689.0,42688.0,0.205362]
[1644687099738,0.005,42689.0,42688.0,0.105362]
[1644687101387,0.005,42689.0,42688.0,0.0468]
[1644687101785,0.005,42689.0,42682.0,0.1249]
[1644687101786,0.20878366,42689.0,42682.0,0.1249]
[1644687101986,0.31066136,42688.0,42679.0,0.04586536]
[1644687102383,0.31066136,42688.0,42678.0,0.058584]
[1644687102586,0.31115036,42688.0,42678.0,0.058584]
[1644687102785,0.07323955,42683.0,42678.0,0.058584]
[1644687103787,0.25639293,42682.0,42678.0,0.058584]
[1644687106034,0.08243557,42685.0,42678.0,0.058584]
[1644687106237,0.2279,42689.0,42678.0,0.058584]
[1644687106238,0.00020053,42686.0,42678.0,0.058584]
[1644687107038,0.19797878,42686.0,42678.0,0.058584]
[1644687107441,0.19850883,42686.0,42678.0,0.058584]
[1644687108240,0.19797878,42686.0,42678.0,0.22573]
[1644687108487,0.19817894,42686.0,42678.0,0.22573]
[1644687108687,0.19817894,42686.0,42678.0,0.27573]
[1644687109486,0.19797878,42686.0,42678.0,0.27573]
[1644687109686,0.19817894,42686.0,42678.0,0.27573]
[1644687109887,0.19817894,42686.0,42679.0,0.29371055]
[1644687110490,0.00020016,42686.0,42678.0,0.27573]
[1644687110686,0.1279,42689.0,42678.0,0.27573]
[1644687110886,0.08897883,42687.0,42678.0,0.17573]
[1644687111087,0.08055724,42687.0,42678.0,0.17573]
[1644687111389,0.30464074,42687.0,42678.0,0.058584]
[1644687111787,0.29964074,42687.0,42678.0,0.058584]
[1644687115747,0.29964074,42687.0,42679.0,0.00053026]
[1644687116788,0.00053026,42679.0,42678.0,0.03986708]
[1644687117088,0.00053026,42679.0,42678.0,0.34446451]
[1644687117988,0.00053026,42679.0,42678.0,0.39446451]
[1644687118188,0.00053026,42679.0,42678.0,0.44446451]
[1644687118392,0.00053026,42679.0,42678.0,0.13986708]
[1644687119837,0.29964074,42687.0,42678.0,0.13986708]
[1644687119838,0.00053026,42686.0,42678.0,0.13986708]
[1644687120039,0.2546695,42686.0,42678.0,0.13986708]
[1644687120240,0.2509385,42686.0,42678.0,0.13986708]
[1644687120438,0.2509385,42686.0,42679.0,0.00053026]
[1644687120640,0.2509385,42686.0,42681.0,0.11715]
[1644687121640,0.2509385,42686.0,42683.0,0.22615526]
[1644687121840,0.2509385,42686.0,42684.0,0.058574]
[1644687122645,0.33536843,42688.0,42684.0,0.058574]
[1644687122844,0.08283828,42688.0,42684.0,0.058574]
[1644687123044,0.08336844,42688.0,42684.0,0.058574]
[1644687123985,0.005,42689.0,42685.0,0.05857]
[1644687124182,0.00053016,42688.0,42685.0,0.05857]
[1644687124582,0.35370946,42694.0,42691.0,0.02015113]
[1644687124783,0.35370946,42694.0,42685.0,0.30857]
[1644687124784,0.04030225,42687.0,42685.0,0.30857]
[1644687126189,0.04030225,42687.0,42685.0,0.05857]
[1644687127840,0.04030225,42687.0,42685.0,0.10857]
[1644687128437,0.02530225,42687.0,42685.0,0.10857]
[1644687129843,0.02530225,42687.0,42685.0,0.05]
[1644687130889,0.02530225,42687.0,42684.0,0.12997592]
[1644687131084,0.02530225,42687.0,42684.0,0.12944571]
[1644687131388,0.02530225,42687.0,42684.0,0.12997592]
[1644687132283,0.02530225,42687.0,42684.0,0.12944571]
[1644687134185,0.02030225,42687.0,42684.0,0.12944571]
[1644687135136,0.01030225,42687.0,42684.0,0.12944571]
[1644687135738,0.01030225,42687.0,42685.0,0.15032456]
[1644687136338,0.01030225,42687.0,42686.0,0.05]
[1644687136541,0.01030225,42687.0,42686.0,0.31663206]
[1644687136738,0.01030225,42687.0,42686.0,0.36663206]
[1644687136939,0.01030225,42687.0,42686.0,0.40173407]
[1644687137138,0.01030225,42687.0,42686.0,0.18190201]
[1644687137539,0.01030225,42687.0,42686.0,0.1468]
[1644687138139,0.01030225,42687.0,42686.0,0.43863117]
[1644687138984,0.01030225,42687.0,42686.0,0.1468]
[1644687139384,0.01030225,42687.0,42686.0,0.59684924]
[1644687139588,0.01030225,42687.0,42686.0,0.33293927]
[1644687139995,0.01030225,42687.0,42686.0,1.57393927]
[1644687141289,0.01030225,42687.0,42686.0,1.71453927]
[1644687141792,0.00053067,42690.0,42686.0,1.71453927]
[1644687141793,0.00053067,42690.0,42688.0,0.257709]
[1644687141992,0.01,42699.0,42688.0,0.257709]
[1644687141993,0.01,42699.0,42689.0,2.0138]
[1644687142250,0.01,42699.0,42690.0,0.643945]
[1644687142451,0.01,42699.0,42691.0,0.0468]
[1644687142853,0.22639433,42699.0,42691.0,0.0968]
[1644687143054,0.22639433,42699.0,42692.0,0.058545]
[1644687143252,0.22639433,42699.0,42693.0,0.0468]
[1644687143450,0.00053063,42697.0,42693.0,0.0468]
[1644687143851,0.0711444,42696.0,42693.0,0.0468]
[1644687144151,0.2543296,42695.0,42693.0,0.0468]
[1644687144650,0.0711444,42696.0,42693.0,0.0468]
[1644687144851,0.25438514,42695.0,42693.0,0.0468]
[1644687145050,0.0711444,42696.0,42693.0,0.0468]
[1644687145251,0.25420634,42695.0,42693.0,0.0468]
[1644687145451,0.25446145,42695.0,42693.0,0.0468]
[1644687145903,0.25185624,42695.0,42693.0,0.0468]
[1644687146097,0.27482418,42695.0,42690.0,0.18613927]
[1644687146298,0.27482418,42695.0,42690.0,0.058569]
[1644687146498,0.00053063,42697.0,42690.0,0.058569]
[1644687146699,0.22639433,42699.0,42690.0,0.058569]
[1644687146700,0.01,42699.0,42690.0,0.058569]
[1644687147099,0.00053065,42695.0,42690.0,0.108569]
[1644687147299,0.00053065,42695.0,42691.0,0.117113]
[1644687147500,0.00053065,42695.0,42691.0,0.167113]
[1644687147701,0.00053065,42695.0,42691.0,0.41992051]
[1644687147899,0.06450165,42698.0,42691.0,0.167113]
[1644687148300,0.00053064,42695.0,42691.0,0.167113]
[1644687149108,0.06450165,42698.0,42691.0,0.117113]
[1644687149302,0.00053064,42695.0,42691.0,0.117113]
[1644687149736,0.00053064,42695.0,42691.0,0.167113]
[1644687150340,0.32978456,42698.0,42691.0,0.167113]
[1644687150537,0.00053064,42695.0,42691.0,0.167113]
[1644687151538,0.06450165,42698.0,42691.0,0.167113]
[1644687151739,0.00053064,42695.0,42691.0,0.167113]
[1644687151940,0.00053064,42695.0,42693.0,0.058556]
[1644687152638,0.01,42699.0,42693.0,0.058556]
[1644687152838,0.01,42699.0,42691.0,0.213913]
[1644687153039,0.00053063,42696.0,42691.0,0.213913]
[1644687153595,0.00053063,42696.0,42692.0,0.058556]
[1644687153795,0.00053063,42696.0,42691.0,0.3080683]
[1644687153995,0.01,42699.0,42691.0,0.3080683]
[1644687154196,0.00053063,42696.0,42691.0,0.3080683]
[1644687154394,0.00053063,42696.0,42693.0,0.117118]
[1644687155196,0.08082335,42698.0,42691.0,0.0968]
[1644687155395,0.08082335,42698.0,42689.0,0.31458706]
[1644687155396,0.00053063,42697.0,42689.0,0.31458706]
[1644687155596,0.00053063,42697.0,42689.0,0.31083184]
[1644687155796,0.00053063,42697.0,42692.0,0.117117]
[1644687155996,0.00053063,42697.0,42693.0,0.058559]
[1644687156398,0.08082335,42698.0,42694.0,0.058558]
[1644687156598,0.00020164,42697.0,42694.0,0.058558]
[1644687157640,0.01,42699.0,42694.0,0.058558]
[1644687157841,0.00020164,42698.0,42694.0,0.058558]
[1644687158040,0.00020164,42698.0,42694.0,0.09955657]
[1644687158440,0.00020164,42698.0,42694.0,0.21666057]
[1644687158840,0.01,42699.0,42694.0,0.21666057]
[1644687159041,0.0005333,42698.0,42694.0,0.21666057]
[1644687159441,0.0005333,42698.0,42696.0,0.22511372]
[1644687159642,0.0005333,42698.0,42696.0,0.27511372]
[1644687159841,0.0005333,42698.0,42696.0,0.32511372]
[1644687160143,0.01,42699.0,42696.0,0.32511372]
[1644687160342,0.01053329,42699.0,42696.0,0.32511372]
[1644687161087,0.01,42699.0,42696.0,0.32511372]
[1644687162693,0.01,42699.0,42697.0,0.058551]
[1644687164494,0.01,42699.0,42698.0,0.0468]
[1644687164737,0.00990191,42699.0,42698.0,0.0968]
[1644687165938,0.00990191,42699.0,42698.0,0.0468]
[1644687166138,0.00990191,42699.0,42695.0,0.18613927]
[1644687166338,0.00990191,42699.0,42695.0,0.1]
[1644687166739,0.00990191,42699.0,42695.0,0.05]
[1644687167141,0.00990191,42699.0,42696.0,0.18894788]
[1644687167340,0.00990191,42699.0,42697.0,0.163893]
[1644687167341,0.01043467,42699.0,42697.0,0.163893]
[1644687167741,0.01043467,42699.0,42698.0,0.05]
[1644687167945,0.01043467,42699.0,42698.0,0.50832334]
[1644687168142,0.01043467,42699.0,42698.0,0.55600472]
[1644687168398,0.00990191,42699.0,42698.0,0.50832334]
[1644687171390,0.00990191,42699.0,42698.0,0.0968]
[1644687171591,0.00857291,42699.0,42698.0,0.0468]
[1644687174843,0.00857291,42699.0,42698.0,0.0968]
[1644687175989,0.00817421,42699.0,42698.0,0.0968]
[1644687176989,0.00817421,42699.0,42698.0,0.0468]
[1644687179390,0.23404646,42699.0,42698.0,0.0468]
[1644687179644,0.09359999,42697.0,42695.0,0.05]
[1644687179843,0.09359999,42697.0,42695.0,0.1]
[1644687180044,0.09359999,42697.0,42695.0,0.05]
[1644687180244,0.26058394,42696.0,42693.0,0.117117]
[1644687180444,0.06332003,42696.0,42693.0,0.117117]
[1644687186195,0.0941332,42697.0,42693.0,0.117117]
[1644687186395,0.09359999,42697.0,42693.0,0.117117]
[1644687186595,0.0941332,42697.0,42693.0,0.117117]
[1644687186795,0.0941332,42697.0,42693.0,0.11700921]
[1644687187441,0.07961155,42696.0,42693.0,0.11700921]
[1644687189343,0.07934503,42696.0,42693.0,0.11700921]
[1644687190244,0.07348993,42696.0,42693.0,0.11700921]
[1644687190910,0.07348993,42696.0,42693.0,0.21700921]
[1644687191507,0.07348993,42696.0,42693.0,0.11700921]
[1644687193112,0.00053321,42697.0,42693.0,0.11700921]
[1644687193511,0.00817421,42699.0,42693.0,0.11700921]
[1644687193911,0.00053321,42697.0,42693.0,0.11700921]
[1644687194741,0.00817421,42699.0,42693.0,0.11700921]
[1644687194942,0.00053321,42697.0,42693.0,0.11700921]
[1644687195543,0.2983514,42703.0,42694.0,0.5]
[1644687195544,0.06390047,42702.0,42694.0,0.5]
[1644687195741,0.06390047,42702.0,42693.0,0.11700921]
[1644687197244,0.06390047,42702.0,42693.0,0.21700921]
[1644687198690,0.00053319,42700.0,42693.0,0.21700921]
[1644687199692,0.06390047,42702.0,42693.0,0.21700921]
[1644687199890,0.07520978,42694.0,42693.0,0.11700921]
[1644687200389,0.00053319,42699.0,42693.0,0.11700921]
[1644687200792,0.64771369,42703.0,42693.0,0.11700921]
[1644687201091,0.00053319,42699.0,42693.0,0.11700921]
[1644687201690,0.06450811,42695.0,42693.0,0.11700921]
[1644687202948,0.06450811,42695.0,42690.0,0.0005333]
[1644687202949,0.27454356,42694.0,42690.0,0.0005333]
[1644687203145,0.27454356,42694.0,42688.0,0.18613927]
[1644687203340,0.27454356,42694.0,42690.0,0.00033416]
[1644687204343,0.27454356,42694.0,42684.0,0.28440593]
[1644687204643,0.07631682,42685.0,42684.0,0.28440593]
[1644687205042,0.07631682,42685.0,42684.0,0.07944771]
[1644687205445,0.27454356,42694.0,42684.0,0.07944771]
[1644687205994,0.27454356,42694.0,42685.0,0.058568]
[1644687206393,0.25371646,42692.0,42684.0,0.33014373]
[1644687206592,0.25371646,42692.0,42684.0,0.07944771]
[1644687206593,0.07423215,42687.0,42684.0,0.07944771]
[1644687206796,0.2591782,42686.0,42684.0,0.07944771]
[1644687206993,0.07423215,42687.0,42684.0,0.07944771]
[1644687208594,0.07423215,42687.0,42684.0,0.07444771]
[1644687211145,0.07423215,42687.0,42684.0,0.03157414]
[1644687214302,0.07423215,42687.0,42684.0,0.02824814]
[1644687214800,0.25194662,42685.0,42684.0,0.02824814]
[1644687216801,0.25194662,42685.0,42684.0,0.02324814]
[1644687222094,0.22731399,42685.0,42684.0,0.02324814]
[1644687222894,0.27527247,42687.0,42684.0,0.0440941]
[1644687223097,0.27394309,42687.0,42684.0,0.0440941]
[1644687223895,0.27394309,42687.0,42684.0,0.02084596]
[1644687224948,0.27394309,42687.0,42679.0,0.00025288]
[1644687224949,0.06253788,42682.0,42679.0,0.00025288]
[1644687225151,0.06253788,42682.0,42676.0,0.18613927]
[1644687225152,0.61585312,42680.0,42676.0,0.18613927]
[1644687225347,0.61585312,42680.0,42674.0,0.00025298]
[1644687225348,0.05,42677.0,42674.0,0.00025298]
[1644687225547,0.24445106,42676.0,42671.0,0.00025298]
[1644687225746,0.24445106,42676.0,42670.0,0.04459824]
[1644687226146,0.24445106,42676.0,42671.0,0.058594]
[1644687226347,0.30798779,42676.0,42671.0,0.05884698]
[1644687227447,0.30798779,42676.0,42671.0,0.00076235]
[1644687228499,0.30798779,42676.0,42671.0,0.00025298]
[1644687228700,0.30798779,42676.0,42671.0,0.00050937]
[1644687228900,0.30798779,42676.0,42671.0,0.00076235]
[1644687229300,0.30798779,42676.0,42672.0,0.058593]
[1644687229498,0.30798779,42676.0,42672.0,0.05884598]
[1644687229898,0.30798779,42676.0,42672.0,0.05910236]
[1644687230800,0.40798779,42676.0,42672.0,0.058593]
[1644687231001,0.40798779,42676.0,42671.0,0.00025298]
[1644687231199,0.0427,42675.0,42672.0,0.00049746]
[1644687231399,0.30724535,42674.0,42672.0,0.00049746]
[1644687231602,0.0427,42675.0,42672.0,0.00049746]
[1644687232000,0.34487246,42675.0,42671.0,0.00025298]
[1644687232245,0.40798779,42676.0,42671.0,0.00049746]
[1644687232446,0.40798779,42676.0,42671.0,0.00075044]
[1644687232447,0.34665728,42675.0,42671.0,0.00075044]
[1644687232647,0.0427,42675.0,42671.0,0.00075044]
[1644687232843,0.1427,42675.0,42671.0,0.00075044]
[1644687233244,0.1427,42675.0,42671.0,0.00025298]
[1644687233444,0.1427,42675.0,42671.0,0.00033334]
[1644687233644,0.1427,42675.0,42671.0,0.00058632]
[1644687233844,0.308216,42674.0,42671.0,0.00058632]
[1644687234345,0.408216,42674.0,42671.0,0.00058632]
[1644687234545,0.13095,42675.0,42671.0,0.00025298]
[1644687234546,0.08825,42675.0,42671.0,0.00025298]
[1644687234746,0.33545106,42676.0,42670.0,0.05189824]
[1644687234747,0.24445106,42676.0,42670.0,0.05189824]
[1644687234945,0.24445106,42676.0,42671.0,0.00025298]
[1644687235145,0.24445106,42676.0,42670.0,0.04459824]
[1644687235548,0.08332769,42673.0,42670.0,0.04459824]
[1644687235746,0.06743762,42673.0,42670.0,0.04459824]
[1644687236000,0.06743762,42673.0,42671.0,0.00049801]
[1644687236801,0.06743762,42673.0,42670.0,0.04459824]
[1644687237001,0.06743762,42673.0,42670.0,0.04509626]
[1644687238006,0.06743762,42673.0,42670.0,0.04459824]
[1644687238404,0.06743762,42673.0,42670.0,0.04485122]
[1644687239005,0.06743762,42673.0,42670.0,0.04459824]
[1644687239206,0.3,42672.0,42670.0,0.04459824]
[1644687239407,0.3427,42672.0,42670.0,0.04459824]
[1644687239641,0.0427,42672.0,42670.0,0.04459824]
[1644687239843,0.1427,42672.0,42670.0,0.04459824]
[1644687240246,0.4427,42672.0,42670.0,0.04459824]
[1644687240441,0.1427,42672.0,42670.0,0.04459824]
[1644687240845,0.0427,42672.0,42670.0,0.04459824]
[1644687241443,0.27319616,42671.0,42670.0,0.04459824]
[1644687241644,0.27319616,42671.0,42670.0,0.04485076]
[1644687241843,0.27319616,42671.0,42670.0,0.04459824]
[1644687243247,0.27319616,42671.0,42669.0,0.00025252]
[1644687243501,0.31589616,42671.0,42668.0,0.00077013]
[1644687243698,0.46589616,42671.0,42668.0,0.00051761]
[1644687243999,0.46589616,42671.0,42667.0,0.00025252]
[1644687244000,0.51589616,42671.0,42667.0,0.00025252]
[1644687244201,0.51589616,42671.0,42664.0,0.04603852]
[1644687244202,0.21942732,42666.0,42664.0,0.00025252]
[1644687244399,0.30158732,42666.0,42665.0,0.00025253]
[1644687244598,0.37299922,42666.0,42664.0,0.00025252]
[1644687244798,0.47299922,42666.0,42664.0,0.00025252]
[1644687245199,0.52299922,42666.0,42664.0,0.00025252]
[1644687245400,0.058632,42664.0,42655.0,0.3]
[1644687245600,0.101332,42664.0,42654.0,0.0032]
[1644687245801,0.058632,42664.0,42654.0,0.0032]
[1644687246001,0.0427,42662.0,42654.0,0.0032]
[1644687246399,0.47760895,42661.0,42654.0,0.0032]
[1644687246800,0.57760895,42661.0,42654.0,0.0032]
[1644687247000,1.86650877,42658.0,42654.0,0.0032]
[1644687247250,0.30661034,42661.0,42654.0,0.0032]
[1644687247451,0.27192468,42660.0,42654.0,0.0032]
[1644687247650,0.06736063,42659.0,42654.0,0.0032]
[1644687247849,0.25250273,42658.0,42654.0,0.0032]
[1644687248653,0.25250273,42658.0,42651.0,0.01]
[1644687249152,0.25250273,42658.0,42654.0,0.00051752]
[1644687250053,0.30250273,42658.0,42651.0,0.01]
[1644687250253,0.30250273,42658.0,42654.0,0.00051752]
[1644687250452,0.40250273,42658.0,42654.0,0.00051752]
[1644687251304,0.40250273,42658.0,42651.0,0.01]
[1644687251500,0.40250273,42658.0,42654.0,0.00051752]
[1644687252102,2.74800602,42656.0,42654.0,0.00051752]
[1644687252304,0.4,42654.0,42643.0,0.05135937]
[1644687252507,0.05,42654.0,42642.0,0.04895232]
[1644687252804,0.41075298,42653.0,42641.0,0.0132]
[1644687253003,1.88306958,42653.0,42641.0,0.0132]
[1644687253304,0.23120804,42652.0,42641.0,0.0132]
[1644687253604,0.27800804,42652.0,42641.0,0.0132]
[1644687254003,1.241,42651.0,42644.0,0.000326]
[1644687254202,0.05,42649.0,42644.0,0.000326]
[1644687254846,0.05,42649.0,42641.0,0.0132]
[1644687255047,0.05,42649.0,42644.0,0.000326]
[1644687255249,0.19999165,42648.0,42644.0,0.000326]
[1644687255446,0.31128482,42647.0,42644.0,0.000326]
[1644687255849,0.41128482,42647.0,42641.0,0.008526]
[1644687256354,0.31128482,42647.0,42641.0,0.008526]
[1644687256951,0.31128482,42647.0,42641.0,0.015826]
[1644687258149,0.31128482,42647.0,42641.0,0.008526]
[1644687258599,0.31128482,42647.0,42642.0,0.00032447]
[1644687258799,1.241,42646.0,42642.0,0.00032447]
[1644687259800,1.241,42646.0,42641.0,0.003526]
[1644687259999,1.241,42646.0,42642.0,0.00052599]
[1644687260000,0.07886503,42645.0,42642.0,0.00052599]
[1644687260201,0.29136939,42644.0,42642.0,0.00052599]
[1644687260599,0.29136939,42644.0,42641.0,0.003526]
[1644687260800,0.25,42643.0,42636.0,0.05055165]
[1644687261000,0.058664,42642.0,42641.0,0.00025237]
[1644687261200,0.36581646,42642.0,42641.0,0.000526]
[1644687261403,0.36581646,42642.0,42634.0,0.0022]
[1644687261404,0.00157799,42640.0,42634.0,0.0022]
[1644687261604,0.3,42638.0,42636.0,0.00025237]
[1644687261903,0.37732087,42637.0,42634.0,0.00025237]
[1644687262350,0.47732087,42637.0,42633.0,0.00135237]
[1644687262551,1.45544876,42636.0,42633.0,0.00135237]
[1644687262752,1.55544876,42636.0,42633.0,0.00135237]
[1644687263053,1.65544876,42636.0,42633.0,0.00135237]
[1644687263854,0.4,42635.0,42632.0,0.00097365]
[1644687264054,0.29342568,42635.0,42632.0,0.00097365]
[1644687264357,0.39342568,42635.0,42632.0,0.00097365]
[1644687264555,0.39342568,42635.0,42632.0,0.00065237]
[1644687265756,0.4,42633.0,42629.0,0.0011]
[1644687266016,0.3,42632.0,42631.0,0.00052345]
[1644687266214,0.21679711,42632.0,42631.0,0.00052345]
[1644687266813,0.21679711,42632.0,42629.0,0.0011]
[1644687268014,0.28206791,42631.0,42629.0,0.0011]
[1644687268413,0.28206791,42631.0,42629.0,0.00161866]
[1644687269416,0.28206791,42631.0,42629.0,0.0011]
[1644687269846,1.98996038,42631.0,42629.0,0.0011]
[1644687270347,2.08996038,42631.0,42629.0,0.0011]
[1644687270747,0.38206791,42631.0,42629.0,0.0011]
[1644687272647,0.28206791,42631.0,42629.0,0.0011]
[1644687272846,0.38206791,42631.0,42629.0,0.0011]
[1644687273797,0.28206791,42631.0,42629.0,0.0011]
[1644687274099,0.38206791,42631.0,42629.0,0.0011]
[1644687274296,1.62306791,42631.0,42629.0,0.0011]
[1644687274605,1.62306791,42631.0,42623.0,0.0011]
[1644687274606,1.241,42627.0,42623.0,0.0011]
[1644687274804,0.327937,42626.0,42623.0,0.0011]
[1644687274997,0.4,42627.0,42623.0,0.0011]
[1644687275198,0.22241572,42624.0,42623.0,0.0011]
[1644687275399,1.76341572,42624.0,42623.0,0.0011]
[1644687275597,1.51341572,42624.0,42623.0,0.00141561]
[1644687275798,1.61341572,42624.0,42623.0,0.00141561]
[1644687275998,0.1,42624.0,42623.0,0.00141561]
[1644687276198,0.0968,42628.0,42623.0,0.00871561]
[1644687276199,0.05,42628.0,42623.0,0.00871561]
[1644687276397,0.35,42628.0,42623.0,0.00871561]
[1644687276597,0.05,42628.0,42623.0,0.0084]
[1644687276797,0.15,42628.0,42623.0,0.0084]
[1644687276999,0.15,42628.0,42623.0,0.00891773]
[1644687277447,0.08892576,42624.0,42623.0,0.00891773]
[1644687277746,0.08892576,42624.0,42623.0,0.0084]
[1644687278344,0.08892576,42624.0,42623.0,0.0011]
[1644687278745,0.35162586,42624.0,42623.0,0.0011]
[1644687278945,0.45162586,42624.0,42623.0,0.0011]
[1644687279344,0.45162586,42624.0,42621.0,0.00203513]
[1644687279545,0.45162586,42624.0,42621.0,0.00228672]
[1644687279944,0.18892576,42624.0,42621.0,0.00228672]
[1644687280149,0.18892576,42624.0,42621.0,0.00178154]
[1644687280351,0.08892576,42624.0,42621.0,0.00178154]
[1644687280748,0.27520885,42627.0,42616.0,0.00035672]
[1644687281010,0.1,42627.0,42620.0,0.19753663]
[1644687281409,0.25296543,42626.0,42620.0,0.19753663]
[1644687281615,0.25554892,42626.0,42621.0,0.00047831]
[1644687281806,0.32037199,42626.0,42621.0,0.00047831]
[1644687282007,0.06482307,42626.0,42621.0,0.00047831]
[1644687282206,0.16482307,42626.0,42621.0,0.00047831]
[1644687282607,0.29558298,42631.0,42616.0,0.10903072]
[1644687282811,0.21524853,42632.0,42623.0,0.20405462]
[1644687283010,0.21524853,42632.0,42624.0,0.0468]
[1644687283011,0.25342023,42631.0,42624.0,0.0468]
[1644687283208,0.25197758,42631.0,42624.0,0.0468]
[1644687283808,0.25197758,42631.0,42624.0,0.23389817]
[1644687284008,0.25197758,42631.0,42625.0,0.00047828]
[1644687284208,0.25517286,42631.0,42626.0,0.0468]
[1644687284845,0.07641506,42627.0,42626.0,0.0468]
[1644687285247,0.07641506,42627.0,42626.0,0.04727834]
[1644687285449,0.35676563,42631.0,42626.0,0.04727834]
[1644687286046,0.35069444,42631.0,42626.0,0.04727834]
[1644687286247,0.35069444,42631.0,42626.0,0.0468]
[1644687286446,0.35069444,42631.0,42626.0,0.04727834]
[1644687287047,0.1,42631.0,42626.0,0.04727834]
[1644687287248,0.0778887,42628.0,42626.0,0.04727834]
[1644687288595,0.0778887,42628.0,42626.0,0.0468]
[1644687289598,0.0778887,42628.0,42625.0,0.00047835]
[1644687289896,0.0778887,42628.0,42621.0,0.04715672]
[1644687290097,0.0778887,42628.0,42625.0,0.00047835]
[1644687290600,0.25020031,42627.0,42625.0,0.00047835]
[1644687290799,0.25462298,42627.0,42625.0,0.00047835]
[1644687290999,0.25462298,42627.0,42621.0,0.00035672]
[1644687291198,0.25462298,42627.0,42624.0,0.00047835]
[1644687291398,2.03543717,42631.0,42624.0,0.00047835]
[1644687291399,0.19589673,42630.0,42624.0,0.00047835]
[1644687292002,0.30722836,42625.0,42624.0,0.00047835]
[1644687292244,0.30722836,42625.0,42621.0,0.00035672]
[1644687293644,0.30722836,42625.0,42621.0,0.00083509]
[1644687294044,0.30682896,42625.0,42621.0,0.00083509]
[1644687294646,0.30682896,42625.0,42621.0,0.00035672]
[1644687294846,0.30682896,42625.0,42621.0,0.00083509]
[1644687295045,0.19247114,42624.0,42621.0,0.00083509]
[1644687295924,0.19247114,42624.0,42621.0,0.00035672]
[1644687296418,0.40682896,42625.0,42621.0,0.00060817]
[1644687296420,0.06475061,42625.0,42621.0,0.00060817]
[1644687297219,0.06475061,42625.0,42621.0,0.00063297]
[1644687297418,0.20435177,42624.0,42621.0,0.00063297]
[1644687298220,0.20435177,42624.0,42621.0,0.00035672]
[1644687298621,0.20435177,42624.0,42621.0,0.00060817]
[1644687299424,0.46197607,42624.0,42621.0,0.00060817]
[1644687299658,0.22478637,42623.0,42621.0,0.00035672]
[1644687299854,0.30390647,42622.0,42621.0,0.00035672]
[1644687300454,0.40390647,42622.0,42621.0,0.00035672]
[1644687302055,1.64490647,42622.0,42621.0,0.00035672]
[1644687302256,1.74490647,42622.0,42621.0,0.00035672]
[1644687302456,0.50390647,42622.0,42621.0,0.00035672]
[1644687303499,0.40390647,42622.0,42621.0,0.00035672]
[1644687306203,1.64490647,42622.0,42621.0,0.00035672]
[1644687306401,1.74490647,42622.0,42621.0,0.00035672]
[1644687306902,0.50390647,42622.0,42621.0,0.00035672]
[1644687308947,2.73746107,42622.0,42621.0,0.00035672]
[1644687309148,0.50390647,42622.0,42621.0,0.00035672]
[1644687310148,0.39804083,42622.0,42621.0,0.00035672]
[1644687310348,0.29804083,42622.0,42621.0,0.00035672]
[1644687310548,0.39804083,42622.0,42621.0,0.00035672]
[1644687311608,0.55878956,42624.0,42621.0,0.00035672]
[1644687311806,0.60813377,42624.0,42621.0,0.00035672]
[1644687312007,0.35435177,42624.0,42621.0,0.00035672]
[1644687312206,0.65727668,42624.0,42621.0,0.00035672]
[1644687312607,0.65672318,42624.0,42621.0,0.00035672]
[1644687313007,0.40435177,42624.0,42621.0,0.00060817]
[1644687314010,0.40435177,42624.0,42621.0,0.00035672]